bitfinex/quotes_ETHUSD_20241216
["timestamp","ask_amount","ask_price","bid_price","bid_amount"]
[1734378540678,0.18251253,4048.0,4046.8,3.83994025]
[1734378540978,0.7966,4048.1,4046.8,3.83994025]
[1734378541343,0.7966,4048.1,4046.9,0.3044101]
[1734378541776,0.7966,4048.1,4046.8,3.35632266]
[1734378541934,0.8236,4047.9,4046.4,3.35632266]
[1734378542126,0.8236,4047.9,4045.8,0.32172094]
[1734378542127,0.8236,4047.6,4045.8,0.32172094]
[1734378542354,0.8236,4047.6,4045.6,3.35632266]
[1734378542355,0.55,4047.3,4045.6,3.35632266]
[1734378542685,0.8236,4047.1,4046.4,3.35632266]
[1734378542864,0.8236,4047.1,4046.5,0.33563227]
[1734378544289,0.8236,4047.1,4046.0,3.35632266]
[1734378544984,0.8236,4047.1,4045.6,3.6780436]
[1734378545290,8.8702703,4046.9,4045.3,0.8274]
[1734378545504,0.84831907,4046.8,4045.2,3.35632266]
[1734378545638,0.8236,4046.7,4045.4,0.32172094]
[1734378545836,0.8236,4046.7,4045.6,3.35632266]
[1734378546040,0.8236,4046.7,4045.4,0.32172094]
[1734378546041,0.8236,4046.7,4046.1,3.35632266]
[1734378546238,0.8236,4046.7,4046.2,0.32172094]
[1734378546436,0.12826754,4048.0,4046.2,0.32172094]
[1734378546437,0.8236,4047.6,4046.5,3.35632266]
[1734378546689,0.18233727,4047.5,4046.5,3.35632266]
[1734378546894,0.8236,4047.6,4046.6,0.32172094]
[1734378547686,0.8236,4047.6,4046.1,3.35632266]
[1734378547838,0.8236,4047.6,4046.2,0.74009321]
[1734378548480,0.7986,4047.4,4046.2,0.74009321]
[1734378549036,0.7986,4047.2,4046.2,0.41837227]
[1734378549238,9.6688703,4047.2,4045.6,3.6780436]
[1734378549480,0.7986,4047.0,4045.7,0.32172094]
[1734378549863,0.18259953,4046.9,4045.7,0.32172094]
[1734378550072,0.7986,4047.0,4045.7,0.32172094]
[1734378550271,0.7986,4047.0,4045.7,0.7684153]
[1734378550596,0.18270897,4046.9,4045.7,0.7684153]
[1734378551378,0.7986,4047.0,4045.7,0.7684153]
[1734378551645,0.18289823,4046.8,4046.1,3.35632266]
[1734378551878,0.18289823,4046.9,4046.1,3.35632266]
[1734378552083,0.7986,4047.0,4046.2,0.33563227]
[1734378552242,0.7986,4047.0,4046.2,0.65735321]
[1734378553097,0.18310625,4046.9,4046.2,0.65735321]
[1734378553442,0.7636,4047.3,4046.6,3.35632266]
[1734378554087,0.7636,4047.3,4046.6,3.6780436]
[1734378554290,0.7636,4047.3,4046.7,0.36780436]
[1734378554789,0.183338,4047.2,4046.7,0.36780436]
[1734378554992,0.7636,4047.3,4046.7,0.36780436]
[1734378555491,0.18340616,4047.2,4046.7,0.36780436]
[1734378555688,9.6781703,4047.9,4046.7,0.36780436]
[1734378555907,0.18351869,4047.8,4047.0,3.35632266]
[1734378556052,9.6781703,4047.9,4047.1,0.02470582]
[1734378556053,0.18351869,4047.7,4047.1,0.02470582]
[1734378556401,9.6781703,4047.9,4046.9,0.7826]
[1734378556402,0.18351869,4047.6,4046.9,0.7826]
[1734378556546,9.6781703,4047.9,4046.0,0.7826]
[1734378556547,0.8079,4047.4,4046.0,0.7826]
[1734378556749,0.20823776,4047.3,4046.0,1.00840313]
[1734378557087,0.8079,4047.4,4046.0,1.33012407]
[1734378557088,0.18351869,4047.2,4046.0,1.33012407]
[1734378557260,0.8079,4047.4,4046.0,1.33012407]
[1734378557261,0.18351869,4047.1,4046.0,1.33012407]
[1734378557462,0.18351869,4047.0,4046.0,1.33012407]
[1734378557645,0.18351869,4046.9,4046.1,0.46864467]
[1734378557846,0.18351869,4046.8,4046.1,0.46864467]
[1734378558046,0.55,4047.3,4046.1,0.46864467]
[1734378558246,0.18356639,4047.2,4046.1,0.46864467]
[1734378558492,0.18356639,4047.1,4046.1,0.46864467]
[1734378558647,0.55,4047.3,4046.1,0.46864467]
[1734378558648,0.18356639,4047.0,4046.1,0.46864467]
[1734378558994,0.18356639,4046.9,4046.1,0.46864467]
[1734378559147,0.99146639,4046.8,4046.1,0.46864467]
[1734378559348,0.18356639,4046.7,4046.1,0.46864467]
[1734378559651,0.8079,4046.8,4046.1,0.46864467]
[1734378559851,0.18368045,4046.7,4046.1,0.46864467]
[1734378560090,0.8079,4046.8,4046.1,0.46864467]
[1734378560901,0.55,4047.3,4046.1,0.46864467]
[1734378561105,8.8702703,4047.7,4046.1,0.46864467]
[1734378561106,0.8079,4047.2,4046.3,3.35632266]
[1734378561767,0.8079,4047.2,4045.8,3.35632266]
[1734378562382,0.18367414,4047.1,4045.8,3.35632266]
[1734378562594,0.8079,4047.2,4045.8,3.35632266]
[1734378562595,0.18367414,4047.0,4045.8,3.35632266]
[1734378562810,0.18367414,4046.9,4045.8,3.77021493]
[1734378563022,0.18367414,4046.8,4045.8,3.77021493]
[1734378563223,0.18367414,4046.7,4045.8,3.77021493]
[1734378563429,0.8079,4047.2,4045.8,3.77021493]
[1734378563730,0.18360907,4047.1,4045.8,4.09193587]
[1734378563931,0.18360907,4047.0,4045.9,0.48745359]
[1734378564082,0.18360907,4046.9,4045.9,0.48745359]
[1734378564285,0.18360907,4046.8,4045.9,0.48745359]
[1734378564622,0.18360907,4046.7,4045.9,0.48745359]
[1734378564933,0.8079,4047.2,4045.9,0.48745359]
[1734378565080,0.18363763,4047.1,4045.8,3.35632266]
[1734378565276,0.18363763,4047.0,4045.8,3.35632266]
[1734378565526,0.18363763,4046.9,4045.8,3.35632266]
[1734378565735,0.18363763,4046.8,4045.8,3.35632266]
[1734378565947,0.18363763,4046.7,4045.8,3.35632266]
[1734378566088,0.18363763,4046.6,4045.9,3.15401039]
[1734378566289,0.8079,4047.2,4045.9,3.15401039]
[1734378566495,0.18369678,4047.1,4045.9,3.15401039]
[1734378566739,0.18369678,4047.0,4045.9,3.15401039]
[1734378566925,0.18369678,4046.9,4046.3,2.74011812]
[1734378567136,0.18369678,4046.8,4046.4,0.7991]
[1734378567332,0.20847697,4047.1,4045.9,4.98184733]
[1734378567533,0.1837666,4047.0,4046.0,0.82609941]
[1734378567734,0.1837666,4046.9,4046.0,0.82609941]
[1734378567944,0.1837666,4046.8,4046.0,0.82609941]
[1734378568091,0.9558666,4046.7,4045.9,2.74011812]
[1734378568295,0.1837666,4046.6,4045.9,2.74011812]
[1734378568620,0.9558666,4046.5,4045.5,2.74011812]
[1734378568790,0.1837666,4046.4,4045.5,2.74011812]
[1734378568993,0.1837666,4046.3,4045.6,0.82662632]
[1734378569190,0.1837666,4046.2,4045.6,0.82662632]
[1734378569449,0.7721,4046.5,4045.6,0.82662632]
[1734378569590,0.1837297,4046.4,4045.6,0.82662632]
[1734378569786,0.1837297,4046.3,4045.5,2.74011812]
[1734378569990,0.1837297,4046.2,4045.5,2.74011812]
[1734378570227,0.1837297,4046.1,4045.5,2.74011812]
[1734378570437,0.9903297,4046.0,4045.1,3.76885506]
[1734378570668,0.57471907,4045.9,4045.2,0.8270882]
[1734378570873,0.99030995,4045.8,4044.7,2.74011812]
[1734378571027,0.18370995,4045.7,4044.7,2.74011812]
[1734378571213,0.18370995,4045.6,4044.7,2.74011812]
[1734378571418,0.8066,4045.4,4044.3,3.76885506]
[1734378571613,0.18370995,4045.3,4044.4,2.06742613]
[1734378571865,0.18370995,4045.2,4044.3,2.74011812]
[1734378572078,1.3115,4045.0,4044.0,1.02873694]
[1734378572374,1.3115,4045.0,4043.9,2.74011812]
[1734378572515,1.3115,4045.0,4043.9,3.11700363]
[1734378572717,0.55,4044.8,4043.9,3.43872457]
[1734378572947,0.18353739,4044.7,4043.9,3.43872457]
[1734378573351,0.7615,4045.0,4044.0,0.63423023]
[1734378573352,0.18353739,4044.9,4044.0,0.63423023]
[1734378573575,0.7615,4045.0,4044.0,0.63423023]
[1734378573852,0.73342229,4044.9,4043.9,3.11700363]
[1734378574053,0.73342229,4044.9,4043.7,3.37593887]
[1734378574054,0.55,4044.9,4043.7,3.37593887]
[1734378574558,0.18326343,4044.8,4043.7,3.37593887]
[1734378574742,0.55,4044.9,4043.7,3.37593887]
[1734378574943,0.55,4044.9,4043.7,4.06650463]
[1734378575261,0.55,4044.9,4043.7,3.74478369]
[1734378576325,0.55,4044.7,4043.7,3.37593887]
[1734378577257,0.813,4044.6,4043.7,3.37593887]
[1734378577554,0.55,4044.5,4043.4,0.32172094]
[1734378578124,0.813,4044.6,4043.7,3.37593887]
[1734378578366,0.813,4044.6,4043.8,0.68135411]
[1734378579068,0.813,4044.6,4043.8,0.36884482]
[1734378579786,0.813,4044.6,4043.3,4.19653887]
[1734378580085,0.813,4044.6,4043.3,3.69765981]
[1734378580290,0.12498888,4044.9,4042.9,0.8216]
[1734378580291,0.55,4044.3,4042.9,0.8216]
[1734378580590,9.6832703,4044.4,4042.6,0.8216]
[1734378580591,0.55,4044.1,4042.6,0.8216]
[1734378580799,0.55,4044.1,4042.7,0.41975389]
[1734378581272,0.55,4044.1,4042.7,1.05398412]
[1734378581586,0.813,4044.2,4042.9,3.37593887]
[1734378581846,0.813,4044.2,4043.0,0.6589583]
[1734378582209,0.813,4044.2,4043.7,3.37593887]
[1734378582361,8.8702703,4044.4,4043.8,0.33759389]
[1734378583494,0.813,4044.5,4043.8,0.33759389]
[1734378584156,1.0210694,4046.7,4044.2,3.0]
[1734378584472,1.0210694,4047.2,4046.3,3.37593887]
[1734378584670,0.2561466,4047.3,4046.4,0.41713684]
[1734378584919,8.8702703,4047.9,4046.4,0.41713684]
[1734378584920,1.5316041,4048.1,4046.4,0.81635778]
[1734378585194,11.36553937,4047.7,4045.8,3.37593887]
[1734378585355,2.65352056,4047.6,4045.8,3.37593887]
[1734378585571,0.20767213,4047.5,4046.3,3.37593887]
[1734378585778,9.05322336,4047.4,4046.3,3.37593887]
[1734378585978,0.20767213,4047.3,4046.3,3.37593887]
[1734378586218,0.02471907,4047.3,4046.3,3.37593887]
[1734378586579,0.55,4047.3,4046.3,3.37593887]
[1734378586781,0.12237831,4047.8,4046.8,3.37593887]
[1734378586782,8.8702703,4047.7,4046.8,3.37593887]
[1734378587322,0.813,4047.6,4046.8,3.37593887]
[1734378588186,0.55,4047.5,4046.8,3.37593887]
[1734378588811,0.55,4047.3,4046.3,3.37593887]
[1734378590000,0.813,4047.6,4045.5,0.8216]
[1734378590001,0.813,4047.6,4046.8,3.37593887]
[1734378590194,0.83771907,4047.6,4046.8,3.37593887]
[1734378591785,0.55,4047.5,4046.8,3.37593887]
[1734378592311,8.89498937,4047.4,4046.8,3.37593887]
[1734378592497,0.55,4047.2,4046.3,3.37593887]
[1734378592711,0.02471907,4047.1,4046.3,3.37593887]
[1734378593009,0.55,4047.2,4046.3,3.37593887]
[1734378593211,0.7896,4047.1,4046.3,3.37593887]
[1734378593412,5.47053,4047.8,4045.4,3.37593887]
[1734378593413,0.55,4046.7,4045.4,3.37593887]
[1734378593594,0.55,4046.4,4045.4,3.37593887]
[1734378593797,0.55,4046.2,4045.4,3.37593887]
[1734378594221,0.55,4046.2,4045.8,3.37593887]
[1734378594822,9.6598703,4046.3,4045.8,3.37593887]
[1734378595022,8.8702703,4046.3,4046.2,3.37593887]
[1734378595239,1.0210694,4048.1,4046.2,3.37593887]
[1734378595240,8.8702703,4047.6,4046.2,3.71353276]
[1734378595390,9.6953703,4047.5,4046.6,3.37593887]
[1734378595993,0.8251,4048.1,4047.1,3.37593887]
[1734378596229,8.8702703,4048.6,4048.0,3.37593887]
[1734378596549,0.8251,4048.8,4048.0,3.37593887]
[1734378596888,0.02471907,4048.7,4048.0,3.37593887]
[1734378597187,0.8251,4048.8,4048.0,3.37593887]
[1734378598210,0.55,4048.7,4048.0,3.37593887]
[1734378601224,0.55,4048.7,4048.0,3.71353276]
[1734378601390,0.8043,4049.4,4048.0,3.71353276]
[1734378602210,0.8043,4049.4,4048.0,0.7881]
[1734378602430,8.8702703,4049.2,4047.6,0.7881]
[1734378602633,3.29566,4049.0,4047.2,0.7881]
[1734378602813,0.57471907,4048.9,4047.2,0.7881]
[1734378603793,0.55,4048.9,4047.6,3.37593887]
[1734378604633,0.57471907,4048.9,4047.6,3.37593887]
[1734378605008,0.55,4048.9,4047.6,3.37593887]
[1734378605420,0.55,4048.9,4046.6,3.0]
[1734378605421,0.12110901,4048.6,4048.1,3.37593887]
[1734378605631,0.8299,4049.4,4048.1,3.37593887]
[1734378606738,0.55,4049.3,4048.1,3.37593887]
[1734378606944,0.55,4049.3,4048.1,3.71353276]
[1734378608103,0.12045397,4049.2,4048.1,3.71353276]
[1734378609659,0.57471907,4049.1,4048.1,3.37593887]
[1734378610016,0.55,4049.1,4048.1,3.37593887]
[1734378610216,0.02471907,4049.0,4048.1,3.37593887]
[1734378610409,0.02471907,4049.0,4047.7,0.8107]
[1734378610961,0.02471907,4049.0,4047.0,0.35322094]
[1734378610962,8.8702703,4049.3,4048.7,3.37593887]
[1734378611268,0.8299,4050.4,4048.9,0.8159]
[1734378611446,8.8702703,4050.3,4049.0,0.02469418]
[1734378611770,8.8702703,4050.3,4048.9,0.8159]
[1734378612751,8.8702703,4050.3,4049.0,0.02469284]
[1734378612960,8.8702703,4050.3,4048.9,0.8159]
[1734378613122,8.8702703,4050.3,4049.0,0.45294328]
[1734378614265,0.12498796,4050.2,4049.0,0.45294328]
[1734378614762,8.8702703,4050.3,4049.3,0.8015]
[1734378614958,8.8702703,4050.3,4049.7,3.37593887]
[1734378615129,8.8702703,4051.0,4049.9,0.8015]
[1734378615330,0.18310014,4050.9,4050.0,0.02468875]
[1734378615539,0.18310014,4050.9,4049.9,0.8015]
[1734378616347,0.12100345,4050.7,4049.2,3.37593887]
[1734378616550,0.55,4050.4,4049.3,0.42021276]
[1734378616733,0.55,4050.1,4049.1,0.8015]
[1734378617070,0.55,4050.1,4048.4,0.8015]
[1734378617071,0.8294,4049.8,4048.4,0.8015]
[1734378617358,0.55,4049.7,4048.4,0.8015]
[1734378617558,0.02471907,4049.6,4048.4,0.8015]
[1734378617855,0.18341817,4049.6,4048.4,0.8015]
[1734378618016,0.1586991,4049.6,4048.4,0.8015]
[1734378618423,2.4695,4049.4,4048.4,0.8015]
[1734378618668,0.7844,4049.2,4047.8,0.8319]
[1734378618873,0.15419572,4049.1,4047.8,1.25268389]
[1734378619033,0.55,4049.0,4047.8,1.25268389]
[1734378619639,0.55,4049.0,4047.8,0.8319]
[1734378619962,0.55,4049.0,4047.7,3.37593887]
[1734378619963,0.7998,4048.6,4047.3,0.8157]
[1734378620261,0.7998,4048.6,4045.1,14.87]
[1734378620262,0.55,4048.3,4046.8,0.8157]
[1734378620463,0.55,4048.0,4046.8,0.8157]
[1734378620634,0.55,4047.8,4046.8,0.8157]
[1734378620834,0.02471907,4047.7,4046.8,0.8157]
[1734378621146,0.55,4047.8,4046.8,0.8157]
[1734378621658,0.02471907,4047.7,4046.8,0.8157]
[1734378622266,0.55,4047.8,4046.8,0.8157]
[1734378622424,0.55,4047.6,4046.8,0.8157]
[1734378622851,0.55,4047.8,4046.8,0.8157]
[1734378623047,0.55,4047.6,4046.8,0.8157]
[1734378623462,0.55,4047.8,4046.8,0.8157]
[1734378623665,0.55,4047.6,4046.8,0.8157]
[1734378623836,0.55,4047.8,4046.8,0.8157]
[1734378624243,0.55,4047.6,4046.8,0.8157]
[1734378624568,0.55,4047.6,4045.3,3.37593887]
[1734378624569,9.44498937,4047.5,4045.3,3.37593887]
[1734378624868,2.47139,4046.3,4045.4,0.7684]
[1734378625072,9.44498937,4046.2,4044.2,0.7684]
[1734378625269,0.55,4045.9,4044.3,0.41443389]
[1734378625567,0.53307993,4046.1,4044.3,0.41443389]
[1734378625568,0.55,4045.7,4044.3,0.41443389]
[1734378626370,0.3259983,4046.1,4044.3,0.41443389]
[1734378626371,0.02471907,4045.6,4044.3,0.41443389]
[1734378626540,0.55,4045.8,4044.2,0.7684]
[1734378626864,0.02471907,4045.7,4044.2,0.7684]
[1734378627069,9.44498937,4045.8,4044.2,0.7684]
[1734378627228,0.55,4045.6,4044.2,0.7684]
[1734378627767,0.55,4045.7,4044.2,0.7684]
[1734378627992,9.42472958,4045.8,4045.0,3.37593887]
[1734378627993,8.8702703,4045.8,4045.0,3.37593887]
[1734378628261,11.3413203,4046.9,4045.2,0.7622]
[1734378628476,8.8702703,4046.8,4045.2,0.7622]
[1734378628670,8.8702703,4046.8,4045.3,0.4417895]
[1734378629385,0.02471907,4046.7,4045.3,0.4417895]
[1734378629672,0.55,4046.7,4045.3,0.4417895]
[1734378631674,0.55,4046.8,4045.3,0.4417895]
[1734378631842,0.02471907,4046.7,4045.2,0.7622]
[1734378632677,0.55,4046.3,4045.2,0.7622]
[1734378632971,3.0217,4045.8,4044.7,0.8031]
[1734378633291,0.02471907,4045.7,4044.7,0.8031]
[1734378633444,0.55,4045.6,4044.7,0.8031]
[1734378634490,0.55,4045.8,4044.7,0.8031]
[1734378634883,0.55,4045.8,4044.8,0.35320364]
[1734378635374,0.55,4045.8,4044.7,0.8031]
[1734378636691,0.02471907,4045.7,4044.7,1.22100389]
[1734378636840,0.55,4045.8,4044.7,0.8031]
[1734378637542,0.57471907,4046.2,4044.7,0.8031]
[1734378637737,0.55,4046.2,4044.8,0.0247199]
[1734378638074,0.55,4046.2,4044.7,0.8031]
[1734378638893,0.55,4046.2,4044.8,0.02471874]
[1734378639279,0.55,4046.2,4044.7,0.8031]
[1734378639490,0.8153,4046.6,4044.9,3.37593887]
[1734378639672,8.8702703,4046.8,4045.1,0.7658]
[1734378640697,0.02471907,4046.7,4045.1,0.7658]
[1734378641272,0.57471907,4046.7,4045.1,0.7658]
[1734378641701,0.55,4046.7,4045.1,0.7658]
[1734378642200,0.57471907,4046.7,4045.1,0.7658]
[1734378642363,0.55,4046.7,4045.2,0.4517125]
[1734378642883,0.02471907,4046.6,4045.2,0.4517125]
[1734378643087,0.57471907,4046.6,4045.2,0.4517125]
[1734378643296,0.57471907,4046.6,4045.1,0.7658]
[1734378643498,9.44498937,4046.6,4045.1,0.7658]
[1734378643700,9.4202703,4046.6,4045.1,0.7658]
[1734378643874,0.02471907,4046.5,4045.1,0.7658]
[1734378644073,0.57471907,4046.5,4045.1,0.7658]
[1734378644586,1.3644,4046.3,4045.1,0.7658]
[1734378644790,0.02471907,4046.2,4045.1,0.7658]
[1734378644988,0.55,4046.1,4045.1,0.7658]
[1734378645192,0.02471907,4046.0,4045.1,0.7658]
[1734378645365,0.8144,4046.3,4045.1,0.7658]
[1734378645366,0.55,4046.2,4045.1,0.7658]
[1734378645807,8.8702703,4046.6,4045.2,0.02471862]
[1734378646012,8.8702703,4046.6,4045.3,0.7807]
[1734378646213,8.8702703,4046.6,4045.4,3.37593887]
[1734378646383,8.8702703,4047.1,4045.5,0.7807]
[1734378646586,0.18213796,4047.0,4045.6,0.45098425]
[1734378647817,0.55,4046.9,4045.6,0.45098425]
[1734378648021,0.55,4046.7,4045.6,0.45098425]
[1734378648328,0.55,4046.7,4045.7,0.81291398]
[1734378648631,0.8316,4047.5,4045.9,3.37593887]
[1734378648833,0.18274409,4047.4,4046.1,0.7882]
[1734378648989,0.18274409,4047.3,4046.1,0.7656]
[1734378649191,0.18274409,4047.2,4046.1,0.7656]
[1734378649393,0.18274409,4047.1,4046.1,0.7656]
[1734378649688,0.8316,4047.8,4045.9,3.37593887]
[1734378649689,0.18274409,4047.0,4046.3,0.7656]
[1734378650001,8.8702703,4047.7,4046.3,0.7656]
[1734378650203,0.57471907,4047.6,4046.3,0.7656]
[1734378650616,0.55,4047.6,4046.3,0.7656]
[1734378650796,9.44498937,4047.6,4046.3,0.7656]
[1734378651018,0.55,4047.4,4046.3,0.7656]
[1734378651216,9.4202703,4047.6,4046.3,0.7656]
[1734378652427,0.57471907,4047.5,4046.3,0.7656]
[1734378652633,0.55,4047.5,4046.3,0.7656]
[1734378653276,0.55,4047.7,4046.4,3.37593887]
[1734378653394,3.0,4048.2,4046.6,0.7705]
[1734378653395,0.55,4047.9,4046.6,0.7705]
[1734378653595,0.55,4048.0,4046.6,0.7705]
[1734378654037,0.57471907,4048.0,4046.6,0.7705]
[1734378654402,0.55,4048.0,4046.6,0.7705]
[1734378654606,0.57471907,4048.0,4046.6,0.7705]
[1734378655010,0.55,4048.0,4046.6,0.7705]
[1734378656601,0.57471907,4048.0,4046.6,0.7705]
[1734378657000,8.8702703,4047.3,4046.2,0.7532]
[1734378657201,0.57471907,4047.2,4046.2,0.7532]
[1734378657714,0.55,4047.2,4046.2,0.7532]
[1734378658104,0.02471907,4047.1,4046.2,0.7532]
[1734378658437,0.57471907,4047.1,4046.2,0.7532]
[1734378659239,0.02471907,4047.1,4046.2,0.7532]
[1734378660121,0.55,4047.2,4046.2,0.7532]
[1734378661418,0.02471907,4047.1,4046.2,0.7532]
[1734378662440,9.4202703,4047.2,4046.2,0.7532]
[1734378662858,0.55,4047.6,4046.4,0.7532]
[1734378664653,8.8702703,4047.7,4046.6,0.788]
[1734378666068,0.55,4047.6,4046.6,0.788]
[1734378666236,0.55,4047.6,4046.7,0.8261]
[1734378667969,9.8913397,4048.5,4047.1,3.37593887]
[1734378668128,8.8702703,4048.5,4047.2,0.77670379]
[1734378668323,8.8702703,4049.1,4047.6,0.752]
[1734378668666,3.2226,4049.6,4047.5,3.37593887]
[1734378668667,8.8702703,4049.2,4047.8,0.752]
[1734378668963,9.8913397,4049.5,4047.8,0.752]
[1734378669163,0.84760987,4049.4,4047.8,0.752]
[1734378669366,0.02471907,4049.3,4047.8,0.752]
[1734378669550,2.46959,4049.3,4047.8,0.752]
[1734378669738,0.02471907,4049.4,4047.8,0.752]
[1734378669941,11.3397103,4049.5,4047.8,0.752]
[1734378670158,0.55,4049.4,4047.8,0.752]
[1734378670665,0.55,4049.4,4048.0,0.7809]
[1734378671027,3.0195,4049.4,4048.0,0.7809]
[1734378671229,0.55,4049.4,4048.0,0.7809]
[1734378672671,0.02471907,4049.3,4048.0,0.7809]
[1734378672830,0.55,4049.4,4048.0,0.7809]
[1734378673032,8.8702703,4049.5,4048.0,0.7809]
[1734378673433,2.46923,4049.9,4048.0,0.7809]
[1734378673434,8.8702703,4049.8,4048.0,0.7809]
[1734378673628,0.02471907,4049.7,4048.0,0.7809]
[1734378673864,0.02471907,4049.7,4048.1,0.41568389]
[1734378674166,0.8002,4049.4,4048.0,0.7809]
[1734378674389,0.57471907,4049.3,4048.0,0.7809]
[1734378674665,3.0198,4048.9,4048.0,0.7809]
[1734378674876,0.02471907,4048.8,4048.0,0.7809]
[1734378675032,0.55,4048.6,4048.0,0.7809]
[1734378675771,3.0,4049.7,4048.0,0.7809]
[1734378675994,3.02471907,4049.7,4048.0,0.7809]
[1734378676197,5.49407907,4049.7,4048.0,0.7809]
[1734378676397,5.46936,4049.7,4048.0,0.7809]
[1734378676598,8.8702703,4049.5,4048.0,0.7809]
[1734378676988,0.55,4049.4,4048.0,0.7809]
[1734378678493,0.55,4049.4,4048.3,0.7814]
[1734378678705,0.55,4049.4,4048.4,0.7814]
[1734378679118,8.8702703,4049.5,4048.4,0.7814]
[1734378679435,8.8702703,4050.0,4048.7,0.7814]
[1734378681108,0.55,4049.9,4048.7,0.7814]
[1734378681327,0.55,4049.9,4048.9,0.7725]
[1734378682411,8.8702703,4050.0,4049.0,4.17313273]
[1734378682641,8.8702703,4050.8,4049.5,0.7725]
[1734378682840,8.8702703,4050.8,4049.9,0.7725]
[1734378683066,8.8702703,4051.5,4049.9,0.7725]
[1734378683769,8.8702703,4051.8,4049.9,1.08520364]
[1734378683929,8.8702703,4051.8,4050.0,0.7725]
[1734378683930,0.02471907,4051.7,4050.0,0.7725]
[1734378684127,8.8702703,4051.8,4050.2,0.7725]
[1734378684359,8.8702703,4051.9,4050.3,0.0246848]
[1734378684641,3.0,4052.4,4050.3,0.0246848]
[1734378684642,8.8702703,4052.7,4051.1,0.7594]
[1734378684854,8.8702703,4052.7,4051.1,1.17293389]
[1734378685356,0.02471907,4052.6,4051.2,0.7594]
[1734378685906,2.46768,4052.4,4051.2,0.7594]
[1734378686460,2.49239907,4052.4,4051.2,0.7594]
[1734378686763,0.55,4052.1,4051.2,0.7594]
[1734378687059,0.85425091,4052.1,4051.2,0.7594]
[1734378688289,0.02471907,4052.0,4051.2,0.7594]
[1734378688591,8.89498937,4052.1,4051.2,0.7594]
[1734378688752,0.55,4052.0,4051.2,0.7594]
[1734378690047,0.55,4051.8,4051.2,0.7594]
[1734378690393,0.4355,4051.8,4051.2,0.7594]
[1734378690686,8.8702703,4051.6,4050.2,0.755]
[1734378690928,0.02471907,4051.5,4050.2,0.755]
[1734378691177,0.83,4051.4,4050.2,0.755]
[1734378691337,0.02471907,4051.5,4050.2,0.755]
[1734378691883,11.4669503,4051.6,4050.2,0.755]
[1734378692373,0.02471907,4051.5,4050.2,0.755]
[1734378692792,0.57471907,4051.5,4050.2,0.755]
[1734378693343,3.04293907,4051.5,4050.2,0.755]
[1734378694093,2.99293907,4051.5,4050.2,0.755]
[1734378694758,8.8702703,4051.4,4050.2,0.755]
[1734378696275,0.55,4051.3,4050.2,0.755]
[1734378697574,0.55,4051.1,4050.2,0.755]
[1734378697886,3.01879,4050.6,4049.1,0.7726]
[1734378698185,0.55,4050.6,4049.1,0.7726]
[1734378698366,0.55,4050.6,4049.2,0.7726]
[1734378702081,2.46895,4050.3,4049.2,0.7726]
[1734378702285,9.4202703,4050.0,4049.2,0.7726]
[1734378702494,9.4202703,4049.7,4048.8,0.8202]
[1734378702796,0.55,4049.5,4048.8,0.8202]
[1734378702997,0.55,4049.6,4048.8,0.8202]
[1734378703894,0.55,4049.2,4048.8,0.8202]
[1734378704672,0.12541496,4049.3,4048.8,0.8202]
[1734378707198,0.55,4049.2,4048.3,0.787]
[1734378707371,0.12541496,4049.3,4048.3,0.787]
[1734378707574,0.55,4049.8,4048.4,0.787]
[1734378709005,0.55,4049.9,4048.4,0.787]
[1734378709366,2.85,4049.9,4048.4,0.787]
[1734378709566,8.8702703,4049.8,4048.4,0.787]
[1734378710004,0.18229633,4049.7,4048.4,0.787]
[1734378710202,0.18229633,4049.7,4048.4,2.73657374]
[1734378710515,8.8702703,4049.8,4048.8,2.73657374]
[1734378710814,8.8702703,4050.8,4048.9,0.85059397]
[1734378711110,0.18230548,4050.7,4048.9,0.85059397]
[1734378711309,0.18230548,4050.6,4049.1,0.8259]
[1734378711510,0.18230548,4050.5,4049.1,0.8259]
[1734378711806,11.3389203,4050.8,4049.1,0.8259]
[1734378711807,0.18230548,4050.4,4049.1,0.8259]
[1734378711982,0.18230548,4050.3,4049.1,0.8259]
[1734378712179,0.18230548,4050.2,4049.1,0.8259]
[1734378712794,0.12261583,4050.3,4049.2,0.02469431]
[1734378713108,0.12261583,4050.3,4048.9,0.8259]
[1734378713313,0.18233893,4050.2,4048.9,0.8259]
[1734378713714,0.01821278,4050.2,4048.9,0.8259]
[1734378714430,0.01821278,4050.2,4049.0,0.8259]
[1734378714635,0.18235455,4050.1,4049.0,0.8259]
[1734378715277,0.01821278,4050.2,4049.0,0.8259]
[1734378716695,0.01821278,4050.2,4049.2,0.7779]
[1734378718614,0.01821278,4050.2,4048.5,0.02469165]
[1734378718615,0.01821278,4050.2,4049.3,0.7779]
[1734378718814,0.18259648,4050.1,4049.3,0.7779]
[1734378719481,0.18259648,4050.0,4049.3,0.7779]
[1734378720091,8.8702703,4050.1,4049.3,0.7779]
[1734378720382,0.01821278,4050.2,4049.3,0.7779]
[1734378721105,0.01821278,4050.2,4049.3,4.14536752]
[1734378721305,0.01821278,4050.2,4049.9,0.7856]
[1734378721509,0.01821278,4050.2,4050.1,0.7856]
[1734378721510,2.78e-06,4050.2,4050.1,0.7856]
[1734378721690,2.78e-06,4050.2,4050.1,1.09830364]
[1734378722891,2.78e-06,4050.2,4050.1,1.67298631]
[1734378723093,8.8702703,4052.6,4050.3,0.8327]
[1734378723298,8.8702703,4052.6,4051.1,0.8327]
[1734378723299,0.18243195,4052.5,4051.1,0.8327]
[1734378723536,0.18243195,4052.5,4051.2,0.85737898]
[1734378723757,0.18243195,4052.4,4051.3,0.02467861]
[1734378723902,0.18243195,4052.3,4051.4,0.8327]
[1734378724255,8.8702703,4052.7,4051.4,0.8327]
[1734378724256,8.99420899,4052.7,4051.4,0.8327]
[1734378724397,8.99420899,4052.7,4051.5,0.02467862]
[1734378724601,0.18242806,4052.6,4051.2,0.8034]
[1734378724833,0.18242806,4052.6,4051.3,0.84567837]
[1734378725034,8.8702703,4053.1,4051.5,0.821]
[1734378725202,8.8702703,4053.3,4052.3,0.821]
[1734378726227,0.18212284,4053.2,4052.3,0.821]